Cogmind - Beta 10.2 @@@ ROGUE MODE // 2021.06.09 @ 04:31:24 Player: The Scout Result: Destroyed by S-10 Pest with Light Assault Rifle Performance ------------- Evolutions (1) 500 Regions Visited (2) 400 Robots Destroyed (23) 115 Value Destroyed (661) 661 Prototype IDs (0) 0 Alien Tech Used (0) 0 Bonus (8) 8 TOTAL SCORE: 1684 Bonus ------- High Alert Combat Kills 8 Cogmind --------- Core Integrity 0/400 Matter 500/500 Energy 100/100 System Corruption 2% Temperature Cool (9) Movement Core (600) Ox11 Location -9/Materials Parts ------- > --- POWER (1) -------- (None) > --- PROPULSION (2) --- (None) > --- UTILITY (4) ------ High-capacity Storage Unit High-capacity Matter Pod > --- WEAPON (2) ------- (None) > --- INVENTORY (12) --- Improved Hover Unit Large Storage Unit Large Storage Unit High-capacity Storage Unit Peak State ------------ > --- POWER ------------ Improved Ion Engine > --- PROPULSION ------- Aluminum Leg Aluminum Leg > --- UTILITY ---------- High-capacity Storage Unit High-capacity Matter Pod Signal Interpreter Core Shielding > --- WEAPON ----------- Autogun EMP Blaster > --- INVENTORY -------- Improved Hover Unit Large Storage Unit Large Storage Unit High-capacity Storage Unit [Rating: 12] Favorites ----------- Power Ion Engine Engine Ion Engine Propulsion Wheel Leg Aluminum Leg Wheel Wheel Utility High-capacity Matter Pod Device Tractor Beam Storage High-capacity Matter Pod Processor Signal Interpreter Protection Hardened Light Armor Plating Weapon Autogun Energy Gun EM Pulse Gun Ballistic Gun Autogun Launcher Grenade Launcher Build | -11 -10 -9 ------- Run | Scr Mat Mat Slots Evolved 2 | . . 2 Power . | . . . Propulsion . | . . . Utility 2 | . . 2 Weapon . | . . . Parts Attached 23 | 4 9 10 Power 3 | 1 . 2 Engine 3 | 1 . 2 Core . | . . . Reactor . | . . . Propulsion 4 | 2 . 2 Treads . | . . . Leg 2 | . . 2 Wheel 2 | 2 . . Hover . | . . . Flight . | . . . Utility 9 | 1 4 4 Device 1 | . . 1 Storage 5 | 1 4 . Processor 1 | . . 1 Hackware . | . . . Protection 2 | . . 2 Artifact . | . . . Weapon 7 | . 5 2 Energy Gun 1 | . 1 . Energy Cannon . | . . . Ballistic Gun 4 | . 3 1 Ballistic Cannon . | . . . Launcher 2 | . 1 1 Special Weapon . | . . . Impact Weapon . | . . . Slashing Weapon . | . . . Piercing Weapon . | . . . Special Melee Weapon . | . . . Unidentified Prototypes . | . . . Parts Lost 13 | . 1 12 Power 2 | . . 2 Propulsion 4 | . . 4 Utility 3 | . . 3 Weapon 4 | . 1 3 Highest Loss Streak 7 | . 1 7 Average Slot Usage (%) 87 | . 93 84 Engine 11 | . 14 9 Leg 6 | . . 9 Wheel 15 | . 28 8 Device 1 | . . 2 Storage 22 | . 22 22 Processor 6 | . . 10 Protection 3 | . . 5 Energy Gun 4 | . 13 . Ballistic Gun 12 | . 8 14 Launcher 2 | . 5 . Naked Turns . | . . . Heaviest Build 51 | 9 45 51 Greatest Support 20 | 20 20 20 Greatest Overweight (x) 16 | 2 2 16 Average Overweight (x) 1 | . 1 2 Largest Inventory Capacity 18 | 6 18 12 Average Capacity 11 | 5 10 12 Most Carried 7 | 5 7 7 Average Carried 4 | 2 4 5 Final Capacity 12 | 6 12 12 Final Carried 6 | 3 6 4 Class Distribution -------------------- 100% | Mutant Dominant Class ---------------- Mutant | -10/Materials Mutant | -9/Materials Resources | -11 -10 -9 ----------- Run | Scr Mat Mat Matter Collected 828 | 182 304 342 Remotely 38 | . . 38 Salvage Created 689 | . 274 415 Parts 49 | . 20 29 Haulers Intercepted . | . . . Recyclers Shooed . | . . . Parts Field Recycled . | . . . Retrieved Matter . | . . . Parts Self-Destructed . | . . . Prevented . | . . . Kills | -11 -10 -9 ------- Run | Scr Mat Mat Combat Hostiles Destroyed 19 | . 7 12 Melee 1 | . . 1 Guns 13 | . 2 11 AOE 5 | . 5 . Classes Destroyed 4 | . 3 1 Builder 2 | . 2 . Watcher 2 | . 1 1 Swarmer 4 | . . 4 Grunt 15 | . 7 8 Best Kill Streak 7 | . 4 7 Combat Bots Only 7 | . 2 7 Max Kills in Single Turn 2 | . 2 1 Gunslinging . | . . . Exploded 1 | . 1 . Melee 1 | . . 1 Uniques/NPCs Destroyed . | . . . Combat | -11 -10 -9 -------- Run | Scr Mat Mat Damage Taken 1567 | . 328 1239 Core 500 | . 99 401 Absorbed by Shields . | . . . Core Remaining (%) 80 | 100 60 . Volleys Fired 50 | . 18 32 Largest 2 | . 2 2 Hottest 60 | . 60 56 Shots Fired 69 | . 29 40 Gun 59 | . 22 37 Cannon . | . . . Launcher 10 | . 7 3 Special . | . . . Kinetic 48 | . 11 37 Thermal . | . . . Explosive 7 | . 7 . Electromagnetic 14 | . 11 3 Robot Hit Streak 7 | . 7 7 Robot Miss Streak 2 | . 2 1 Penetration Max . | . . . Secondary Targets . | . . . Shots Hit Robots 45 | . 18 27 Core Hits 35 | . 15 20 Critical Hits . | . . . Critical Kills . | . . . Critical Parts Destroyed . | . . . Melee Attacks . | . . . Impact . | . . . Slashing . | . . . Piercing . | . . . Sneak Attacks . | . . . Combat Hostiles . | . . . Follow-up Attacks . | . . . Damage Inflicted 1104 | . 671 433 Guns 548 | . 190 358 Cannons . | . . . Explosions 531 | . 481 50 Melee . | . . . Ramming 25 | . . 25 Kinetic 432 | . 74 358 Thermal 100 | . 100 . Explosive 381 | . 381 . Electromagnetic 166 | . 116 50 Impact . | . . . Slashing . | . . . Piercing . | . . . Highest Corruption 2 | . 1 2 Average Corruption 1 | . 1 2 Corruption Purged . | . . . Overload Shots . | . . . Overflow Damage 26 | . 26 . Projectiles . | . . . Explosions 26 | . 26 . Melee . | . . . Knockbacks . | . . . Impact . | . . . Kinetic . | . . . Secondary . | . . . Self-Inflicted Damage 170 | . 138 32 Shots 4 | . 2 2 Rammed 10 | . . 10 Targets Rammed 12 | . . 12 Kicked 2 | . . 2 Crushed . | . . . Highest Temperature 59 | . 59 29 Average Temperature 20 | . 34 9 Received Heat Transfer 435 | . 69 366 Siege Activations . | . . . Robots Corrupted . | . . . Combat Hostiles . | . . . Parts Fried . | . . . Impact Corruptions . | . . . Robots Melted . | . . . Combat Hostiles . | . . . Parts Melted . | . . . Heat Transferred 50 | . 50 . Parts Sabotaged . | . . . Parts Stolen . | . . . Parts Stripped . | . . . Power Chain Reactions 1 | . 1 . Missiles Intercepted . | . . . Alert | -11 -10 -9 ------- Run | Scr Mat Mat Peak Influence 405 | . 247 405 Initial 104 | . . 104 Average 172 | . 133 214 Maximum Alert Level 2 | . 1 2 Low Security (%) 53 | 100 62 42 Level 1 45 | . 37 54 Level 2 1 | . . 2 Level 3 . | . . . Level 4 . | . . . Level 5 . | . . . High Security . | . . . Max Security . | . . . Squads Dispatched 5 | . 2 3 Investigation 1 | . 1 . Extermination . | . . . Reinforcement 4 | . 1 3 Assault . | . . . Garrison . | . . . Intercept . | . . . Construction Impeded . | . . . Haulers Reinforced . | . . . Stealth | -11 -10 -9 --------- Run | Scr Mat Mat Distress Signals 3 | . 1 2 Communications Jammed . | . . . Distress Signals . | . . . Times Spotted 40 | . 9 31 Peak Tracking Total 9 | . 4 9 Tactical Retreats 6 | . . 6 Traps | -11 -10 -9 ------- Run | Scr Mat Mat Traps Triggered 4 | . 4 . Indirectly . | . . . Trap Hack Attempts . | . . . Triggered . | . . . Disarmed . | . . . Reprogrammed . | . . . Reused . | . . . Traps Extracted . | . . . Installed . | . . . Triggered . | . . . Machines | -11 -10 -9 ---------- Run | Scr Mat Mat Machines Disabled 3 | . 3 . Max in Single Turn 2 | . 2 . Machines Sabotaged . | . . . Garrisons Compromised . | . . . Overloaded Fab Kills . | . . . Fab Network Shutdowns . | . . . Hacking | -11 -10 -9 --------- Run | Scr Mat Mat Machines Accessed 5 | . 2 3 Terminals 5 | . 2 3 Fabricators . | . . . Repair Stations . | . . . Recycling Units . | . . . Scanalyzers . | . . . Garrison Access . | . . . Total Hacks 15 | . 6 9 Successful 4 | . . 4 Failed 11 | . 6 5 Catastrophic 1 | . 1 . Database Lockouts . | . . . Manual 6 | . . 6 Terminals 15 | . 6 9 Fabricators . | . . . Repair Stations . | . . . Recycling Units . | . . . Scanalyzers . | . . . Garrison Access . | . . . Terminal Hacks 2 | . . 2 Branch Access Points 1 | . . 1 Locate Traps 1 | . . 1 Fabricator Hacks . | . . . Repair Station Hacks . | . . . Recycling Unit Hacks . | . . . Scanalyzer . | . . . Garrison Access Hacks . | . . . Unauthorized Hacks 2 | . . 2 Terminals 2 | . . 2 Botnet 1 | . . 1 Detonate 1 | . . 1 Fabricators . | . . . Repair Stations . | . . . Recycling Units . | . . . Scanalyzers . | . . . Garrison Access . | . . . Data Cores Recovered . | . . . Used . | . . . Hacking Detections 5 | . 2 3 Full Trace Events 3 | . 2 1 Feedback Events . | . . . Feedback Blocked . | . . . Robot Schematics Acquired . | . . . Robots Built . | . . . Matter . | . . . Time . | . . . Total Robot Build Rating . | . . . Part Schematics Acquired . | . . . Parts Built . | . . . Matter . | . . . Time . | . . . Total Part Build Rating . | . . . Parts Repaired . | . . . Time . | . . . Parts Recycled . | . . . Recycled Matter . | . . . Retrieved Matter . | . . . Retrieved Components . | . . . Parts Scanalyzed . | . . . Part Schematics Acquired . | . . . Parts Damaged . | . . . Bothacking | -11 -10 -9 ------------ Run | Scr Mat Mat Used RIF Installer . | . . . Robots Hacked . | . . . Non-combat . | . . . Combat . | . . . Robot Hacks Applied . | . . . Relay Couplers Released . | . . . Robots Rewired . | . . . Allies Hacked . | . . . Hacks Repelled . | . . . Allies | -11 -10 -9 -------- Run | Scr Mat Mat Total Allies . | . . . Largest Group . | . . . Highest-Rated Group . | . . . Highest-Rated Ally . | . . . Total Orders . | . . . Ally Attacks . | . . . Total Damage . | . . . Kills . | . . . Allies Corrupted . | . . . Allies Melted . | . . . Intel | -11 -10 -9 ------- Run | Scr Mat Mat Robot Analysis Total . | . . . Derelict Logs Recovered . | . . . Drone Launches . | . . . Drone Recoveries . | . . . Exploration | -11 -10 -9 ------------- Run | Scr Mat Mat Turns Passed 1153 | 80 383 690 Spaces Moved 755 | 80 311 364 Core 23 | 18 . 5 Treads . | . . . Legs 123 | . . 123 Wheels 609 | 62 311 236 Hover . | . . . Flight . | . . . Fastest Speed 50 | 50 80 100 Average Speed 114 | 85 93 138 Slowest Speed 850 | 150 100 850 Overloaded Moves . | . . . Propulsion Burnouts . | . . . Robots Hopped . | . . . Cave-ins Triggered . | . . . Exploration Rate (%) 22 | 4 37 25 Regions Visited 2 Branch Regions . Pre-discovered Areas . | . . . Known Exits Taken . | . . . Unknown Exits Taken 2 | 1 1 . Scrap Searched . | . . . Spaces Dug . | . . . Terrain Destroyed 54 | . 54 . Melee . | . . . Projectile . | . . . AOE 54 | . 54 . Terrain Rammed . | . . . Walls Destroyed . | . . . Machines Disabled . | . . . Actions | -11 -10 -9 --------- Run | Scr Mat Mat Total 962 | 92 376 494 Wait 86 | . 26 60 Move 753 | 79 310 364 Hop . | . . . Pick Up 28 | 8 9 11 Fast Attach . | . . . Attach 23 | 4 9 10 Detach 3 | . 3 . Swap . | . . . Drop 7 | 1 1 5 Fire 50 | . 18 32 Melee . | . . . Ram 2 | . . 2 Kick 10 | . . 10 Crush . | . . . Escape Stasis . | . . . Rewire . | . . . Trap . | . . . Miscellaneous . | . . . Route ------- -11/Scrapyard -10/Materials -9/Materials (discovered 2 exits: Min x2) History --------- Turn | Location | Event 6 | -11/Scrapyard | Discovered new exit (range 16) 81 | -11/Scrapyard | Entered Materials 304 | -10/Materials | Build established: Mutant 390 | -10/Materials | Discovered new exit (range 10) 464 | -10/Materials | Entered another Materials area 464 | -9/Materials | Evolved 2 slots: Utility x2 520 | -9/Materials | Identified exit to Mines 838 | -9/Materials | Destroyed 7 combat bots 1128 | -9/Materials | Core integrity fell below 50% 1150 | -9/Materials | Core integrity fell below 20% 1154 | -9/Materials | Destroyed by S-10 Pest with Light Assault Rifle Last Messages --------------- 01124_ Signal Interpreter temporarily disabled. 01124_ Core Shielding destroyed. 01126_ Kicked G-34 Mercenary out of the way. 01128_ Slammed into G-34 Mercenary. 01128_ G-34 Mercenary destroyed. 01129_ Acquired 45 matter. 01133_ Signal Interpreter destroyed. 01133_ Slammed into Y-45 Defender. 01140_ Kicked Y-45 Defender out of the way. 01141_ C-30 ARC bursts open, deploying its payload. 01141_ S-10 Pest unfolds itself. 01142_ K-01 Serf collects debris. 01142_ Aluminum Leg destroyed. 01143_ Slammed into Y-45 Defender. 01143_ Destabilizing: System corrupted (+2). 01144_ Broken Aluminum Leg destroyed. 01147_ K-01 Serf collects debris. 01147_ Imp. Ion Engine destroyed. 01150_ Slammed into Y-45 Defender. 01150_ K-01 Serf collects debris. Map ----- +----------------------------------------------------+ | ?????????????????????????????????????????????????? | | ?????????????????????????????????????????????????? | | ?????????????????????????????????????????????????? | | ?????????????????????????????????????????????????? | | ?????????????????????????????????????????????????? | | ?????????????????????????????????????????????????? | | ????????????????????????????????????? ? #????????? | | ??????????????????????????????????? #????????? | | ??????????????????????????????????? #????????? | | ??????????????????????????????????? #????????? | | ??????????????????????????????????? +????????? | | ??????????????????????????????????? #????????? | | ??????????????????????????????????? #????????? | | ???????????????????########???????? #????????? | | ????????#####??????# ######### #######??? | | ????????? ?????# + T #?? | | >????????? ????# * ##### #?? | | ???????????? ???# = #???# """ """?????? | | ?????????????# ??# ! #???# """ """?? ??? | | ??????????????# ^?# ##### """ """ #?? | | ??????????????# ^##+####### #?? | | ??????????????# ^ #?? | | ??????????????# ^ %! ####### #?? | | ??????????????# ^ ### #????????????? | | ??????????????## ####/###Y##### #????????????? | | ???????????????# ???#k%%s@ # #????????????? | | ???????????????# ???# !ss% # #??????>?????? | | ???????????????# ???#=%! # #????????????? | | ???????????????# ???#k* # #????????????? | | ???????????????# ???########### #????????????? | | ???????????????# ???# ! ! ## #????????????? | | ??????????????## #### ## #????????????? | | ???????######## % /#[ ## #????????????? | | ???????# * # !""" ## #????????????? | | ???????+ =%T + =""" + #????????????? | | ???????# ![ #[ """ ####+#########??????? | | ???????### #### # """ # =%* #??????? | | ??????????????## ## """ # !!""" * #??????? | | ???????????????# ## #!!! """ * #??????? | | ???????????????# ###########!!! """ * #??????? | | ???????????????+ #?????????#!! #??????? | | ?????????????? # #???????################??????? | | ????????????? # #???????# #????????????? | | ????????????? ?# ######### """ #????????????? | | ????????????##?# === ## """"" #????????????? | | ??????########?# === + """"" #????????????? | | ??????# #?# === ## """"" #????????????? | | ??????# ||] #?# " ## """ #????????????? | | ??????# ||] #?# T ## #????????????? | | ??????# |] #?# " ## #########????? | +----------------------------------------------------+ Best States ------------- Heat Dissipation 28 Energy Generation 12 Energy Capacity 265 Matter Stores 500 Matter Capacity 500 Sight Range 16 Terrain Scan Density 10 Armor Coverage 150 Core Shielding 20 Evasion (%) 44 Item Schematics ----------------- None Robot Schematics ------------------ None Fabricated ------------ Nothing Alien Tech Used ----------------- None Achievements -------------- Let's See Who's Tougher True Hacker Challenges ------------ None Game ------ Seed BackupXenonThruster Manual? 0 Play Time 00:18:04 Cumulative 3.4 hours Start 2021.06.09 @ 04:15:03 End 2021.06.09 @ 04:31:24 Sessions 1 Manual Loads 0 Difficulty Rogue Special Mode None Game No. 15 Rogue 15 Adventurer 0 Explorer 0 Win Type - Total 0 Types 0/0/0/0/0/0/0/0/0 Lore% 2 Gallery% 6 Achievement% 7 Wizard Run 0 Options --------- ASCII 0 Keyboard 0 Movement Numpad Keybinds 0 Fullscreen 2 Font 24/Cog Map View 76x50 Tactical HUD 1 Map Filters NONE Filters NONE Steam 1 RUN: fe21391a-5a1a-4701-be5d-f4c3c624fe2e